[Event "2nd Namma Bengaluru Open-A 2025"]
[Site "Bengaluru"]
[Date "2025.04.11"]
[Round "3.1"]
[White "Krishnan, Ritvik"]
[Black "Iniyan, Pa"]
[Result "1/2-1/2"]
[Annotator "ChessBase"]
[ECO "E17"]
[WhiteElo "2316"]
[BlackElo "2578"]
[PlyCount "83"]
[EventDate "2025.04.10"]
[EventType "swiss"]
[EventCountry "IND"]
[SourceTitle "playchess.com"]
[Source "ChessBase"]
[SourceQuality "1"]
[TimeControl "5400+30"]

1. d4 {[%emt 0:11:47]} Nf6 {[%emt 0:01:00]} 2. c4 {[%emt 0:00:07]} e6 {[%emt 0:00:09]} 3. Nf3 {[%emt 0:00:06]} b6 {[%emt 0:03:12]} 4. g3 {[%emt 0:00:07]} Bb7 {[%emt 0:00:08]} 5. Bg2 {[%emt 0:00:07]} Be7 {[%emt 0:00:07]} 6. O-O {[%emt 0:00:10]} O-O {[%emt 0:00:06]} 7. Re1 {[%emt 0:00:29]} Qc8 {[%emt 0:00:34]} 8. Nc3 {[%emt 0:00:18]} Ne4 {[%emt 0:00:09]} 9. Bd2 {[%emt 0:00:11]} d6 {[%emt 0:01:09]} 10. Qc2 {[%emt 0:01:20]} f5 {[%emt 0:06:44]} 11. Rad1 {[%emt 0:09:26]} Bf6 {[%emt 0:12:15]} 12. d5 {[%emt 0:06:00]} Bxc3 {[%emt 0:00:37]} 13. Bxc3 {[%emt 0:00:15]} e5 {[%emt 0:00:10]} 14. b4 {[%emt 0:01:38]} a5 {[%emt 0:15:17]} 15. a3 {[%emt 0:00:34]} Nd7 {[%emt 0:12:29]} 16. Bb2 {[%emt 0:02:09]} Ndf6 {[%emt 0:09:28]} 17. Nd2 {[%emt 0:01:57]} Nxd2 {[%emt 0:00:10]} 18. Rxd2 {[%emt 0:00:05]} axb4 {[%emt 0:00:05]} 19. axb4 {[%emt 0:00:13]} Qd7 {[%emt 0:00:17]} 20. Bh3 {[%emt 0:04:31]} Bc8 {[%emt 0:00:13]} 21. e4 {[%emt 0:02:40]} Qa4 {[%emt 0:04:32]} 22. Bxf5 {[%emt 0:06:30]} Bxf5 {[%emt 0:02:20]} 23. exf5 {[%emt 0:00:19]} Qxb4 {[%emt 0:00:09]} 24. Rde2 {[%emt 0:01:58]} Ra2 {[%emt 0:05:35]} 25. Qc1 {[%emt 0:04:59]} Qb3 {[%emt 0:04:47]} 26. f4 {[%emt 0:07:40]} exf4 {[%emt 0:01:07]} 27. Bxf6 {[%emt 0:00:20]} Rxe2 {[%emt 0:06:24]} 28. Rxe2 {[%emt 0:00:19]} gxf6 {[%emt 0:00:11]} 29. Qxf4 {[%emt 0:01:01]} Ra8 {[%emt 0:01:31]} 30. Kg2 {[%emt 0:38:14]} Ra2 {[%emt 0:03:41]} 31. Qe4 {[%emt 0:00:00]} Rxe2+ {[%emt 0:00:07]} 32. Qxe2 {[%emt 0:00:00]} Qc3 {[%emt 0:00:36]} 33. Qe8+ {[%emt 0:00:00]} Kg7 {[%emt 0:00:06]} 34. Qe7+ {[%emt 0:00:00]} Kh6 {[%emt 0:00:09]} 35. Kh3 {[%emt 0:00:00]} Qa1 {[%emt 0:00:46]} 36. Qf8+ {[%emt 0:00:00]} Kh5 {[%emt 0:00:07]} 37. Qf7+ {[%emt 0:00:00]} Kh6 {[%emt 0:00:07]} 38. Qf8+ {[%emt 0:00:00]} Kh5 {[%emt 0:00:05]} 39. Qf7+ {[%emt 0:00:00]} Kh6 {[%emt 0:00:04]} 40. Qe7 {[%emt 0:00:00]} Qf1+ {[%emt 0:00:27]} 41. Kh4 {[%emt 0:00:00]} Qxf5 {[%emt 0:00:09]} 42. Qf8+ {[%emt 0:00:00]} 1/2-1/2

[Event "2nd Namma Bengaluru Open-A 2025"]
[Site "Bengaluru"]
[Date "2025.04.11"]
[Round "3.2"]
[White "Grigoryan, Karen H."]
[Black "Jinan Jomon"]
[Result "1-0"]
[Annotator "ChessBase"]
[ECO "B90"]
[WhiteElo "2556"]
[BlackElo "2311"]
[PlyCount "111"]
[EventDate "2025.04.10"]
[EventType "swiss"]
[EventCountry "IND"]
[SourceTitle "playchess.com"]
[Source "ChessBase"]
[SourceQuality "1"]
[TimeControl "5400+30"]

1. e4 {[%emt 0:00:03]} c5 {[%emt 0:00:27]} 2. Nf3 {[%emt 0:00:06]} d6 {[%emt 0:00:16]} 3. d4 {[%emt 0:00:25]} cxd4 {[%emt 0:00:06]} 4. Nxd4 {[%emt 0:00:04]} Nf6 {[%emt 0:00:08]} 5. Nc3 {[%emt 0:00:05]} a6 {[%emt 0:00:03]} 6. Be3 {[%emt 0:00:34]} e5 {[%emt 0:00:12]} 7. Nf3 {[%emt 0:00:19]} Be7 {[%emt 0:00:40]} 8. Be2 {[%emt 0:01:15]} O-O {[%emt 0:02:26]} 9. a4 {[%emt 0:00:29]} Be6 {[%emt 0:07:14]} 10. O-O {[%emt 0:00:29]} Ng4 {[%emt 0:06:58]} 11. Bc1 {[%emt 0:00:12]} Nd7 {[%emt 0:02:39]} 12. Nd2 {[%emt 0:06:52]} Ngf6 {[%emt 0:00:34]} 13. Bf3 {[%emt 0:04:40]} Rc8 {[%emt 0:07:01]} 14. Re1 {[%emt 0:01:00]} Qa5 {[%emt 0:09:22]} 15. Nb3 {[%emt 0:01:50]} Qc7 {[%emt 0:00:25]} 16. Be3 {[%emt 0:00:56]} Nb6 {[%emt 0:07:41]} 17. Nd2 {[%emt 0:03:37]} Nc4 {[%emt 0:06:02]} 18. Nxc4 {[%emt 0:00:09]} Qxc4 {[%emt 0:00:17]} 19. a5 {[%emt 0:06:30]} Rfd8 {[%emt 0:06:01]} 20. Ra4 {[%emt 0:06:43]} Qc6 {[%emt 0:00:13]} 21. Rb4 {[%emt 0:00:22]} d5 {[%emt 0:13:48]} 22. Rb6 {[%emt 0:03:05]} Qc7 {[%emt 0:05:59]} 23. exd5 {[%emt 0:02:01]} e4 {[%emt 0:00:06]} 24. Rxe6 {[%emt 0:01:01]} fxe6 {[%emt 0:04:04]} 25. Bb6 {[%emt 0:00:18]} Qf4 {[%emt 0:06:13]} 26. Bxd8 {[%emt 0:01:11]} Rxd8 {[%emt 0:02:11]} 27. Nxe4 {[%emt 0:01:18]} Nxd5 {[%emt 0:01:34]} 28. Qe2 {[%emt 0:00:09]} Qe5 {[%emt 0:01:31]} 29. g3 {[%emt 0:00:47]} g6 {[%emt 0:05:18]} 30. c3 {[%emt 0:00:12]} Kg7 {[%emt 0:00:28]} 31. Nd2 {[%emt 0:01:01]} Qxe2 {[%emt 0:00:30]} 32. Rxe2 {[%emt 0:00:06]} Kf7 {[%emt 0:01:00]} 33. Nb3 {[%emt 0:03:31]} Nc7 {[%emt 0:04:08]} 34. Re4 {[%emt 0:00:13]} Bd6 {[%emt 0:00:54]} 35. Rd4 {[%emt 0:01:29]} e5 {[%emt 0:00:37]} 36. Rd3 {[%emt 0:00:53]} Ke7 {[%emt 0:00:50]} 37. Nd2 {[%emt 0:00:14]} Ne6 {[%emt 0:00:32]} 38. b4 {[%emt 0:00:06]} Bc7 {[%emt 0:00:30]} 39. Rxd8 {[%emt 0:00:25]} Nxd8 {[%emt 0:00:01]} 40. Nc4 {[%emt 0:00:13]} Ke6 {[%emt 0:00:53]} 41. Kf1 {[%emt 0:00:23]} h6 {[%emt 0:00:35]} 42. Ke2 {[%emt 0:00:07]} Bb8 {[%emt 0:00:16]} 43. Kd3 {[%emt 0:00:19]} Ba7 {[%emt 0:00:27]} 44. Ne3 {[%emt 0:01:35]} b6 {[%emt 0:00:44]} 45. axb6 {[%emt 0:00:35]} Bxb6 {[%emt 0:00:03]} 46. Bd5+ {[%emt 0:00:31]} Ke7 {[%emt 0:00:53]} 47. Bc4 {[%emt 0:00:17]} Ba7 {[%emt 0:00:32]} 48. Bxa6 {[%emt 0:00:08]} Nf7 {[%emt 0:00:31]} 49. c4 {[%emt 0:00:15]} Ng5 {[%emt 0:00:22]} 50. c5 {[%emt 0:00:10]} e4+ {[%emt 0:00:22]} 51. Kd4 {[%emt 0:00:30]} Ne6+ {[%emt 0:00:09]} 52. Ke5 {[%emt 0:00:12]} h5 {[%emt 0:00:33]} 53. Nd5+ {[%emt 0:00:22]} Kf7 {[%emt 0:00:05]} 54. Bc4 {[%emt 0:00:41]} Ng5 {[%emt 0:00:41]} 55. Nf4+ {[%emt 0:00:27]} Kg7 {[%emt 0:00:06]} 56. Ne6+ {[%emt 0:00:08]} 1-0

[Event "2nd Namma Bengaluru Open-A 2025"]
[Site "Bengaluru"]
[Date "2025.04.11"]
[Round "3.3"]
[White "Velpula Sarayu"]
[Black "Petrosyan, Manuel"]
[Result "0-1"]
[Annotator "ChessBase"]
[ECO "C18"]
[WhiteElo "2302"]
[BlackElo "2544"]
[PlyCount "88"]
[EventDate "2025.04.10"]
[EventType "swiss"]
[EventCountry "IND"]
[SourceTitle "playchess.com"]
[Source "ChessBase"]
[SourceQuality "1"]
[TimeControl "5400+30"]

1. e4 {[%emt 0:00:25]} e6 {[%emt 0:01:12]} 2. d4 {[%emt 0:00:33]} d5 {[%emt 0:00:05]} 3. Nc3 {[%emt 0:00:33]} Bb4 {[%emt 0:00:11]} 4. e5 {[%emt 0:00:48]} c5 {[%emt 0:00:13]} 5. a3 {[%emt 0:00:27]} Ba5 {[%emt 0:00:06]} 6. dxc5 {[%emt 0:05:39]} d4 {[%emt 0:10:42]} 7. b4 {[%emt 0:01:21]} dxc3 {[%emt 0:01:04]} 8. bxa5 {[%emt 0:01:01]} Qxd1+ {[%emt 0:01:18]} 9. Kxd1 {[%emt 0:00:05]} Ne7 {[%emt 0:05:32]} 10. Bb5+ {[%emt 0:22:49]} Bd7 {[%emt 0:01:27]} 11. Rb1 {[%emt 0:01:12]} Bxb5 {[%emt 0:09:14]} 12. Rxb5 {[%emt 0:00:27]} Nbc6 {[%emt 0:00:08]} 13. Ne2 {[%emt 0:10:09]} O-O-O+ {[%emt 0:12:07]} 14. Ke1 {[%emt 0:00:11]} Nd5 {[%emt 0:00:11]} 15. h4 {[%emt 0:05:44]} a6 {[%emt 0:13:21]} 16. Rb1 {[%emt 0:01:43]} Nxe5 {[%emt 0:00:06]} 17. Rh3 {[%emt 0:02:38]} Nc6 {[%emt 0:00:18]} 18. Nxc3 {[%emt 0:06:56]} Nxc3 {[%emt 0:01:15]} 19. Rxc3 {[%emt 0:00:24]} Rd5 {[%emt 0:00:11]} 20. Be3 {[%emt 0:05:41]} Nxa5 {[%emt 0:04:39]} 21. Rb4 {[%emt 0:04:47]} h5 {[%emt 0:00:34]} 22. Rf4 {[%emt 0:18:36]} f6 {[%emt 0:00:59]} 23. Rd3 {[%emt 0:02:04]} Rxd3 {[%emt 0:09:08]} 24. cxd3 {[%emt 0:00:06]} Nc6 {[%emt 0:00:06]} 25. d4 {[%emt 0:03:01]} Ne7 {[%emt 0:01:16]} 26. Bd2 {[%emt 0:03:04]} Ng6 {[%emt 0:05:02]} 27. Re4 {[%emt 0:00:31]} Kd7 {[%emt 0:00:04]} 28. g3 {[%emt 0:00:33]} Ne7 {[%emt 0:00:57]} 29. Re3 {[%emt 0:01:11]} Nd5 {[%emt 0:00:19]} 30. Rb3 {[%emt 0:00:53]} Kc6 {[%emt 0:00:05]} 31. Ke2 {[%emt 0:01:40]} Re8 {[%emt 0:00:08]} 32. Bf4 {[%emt 0:00:46]} Re7 {[%emt 0:03:10]} 33. Kd3 {[%emt 0:00:29]} e5 {[%emt 0:01:54]} 34. dxe5 {[%emt 0:00:21]} fxe5 {[%emt 0:00:05]} 35. Bg5 {[%emt 0:00:05]} Rf7 {[%emt 0:01:14]} 36. Rb2 {[%emt 0:00:06]} Rf3+ {[%emt 0:01:50]} 37. Ke4 {[%emt 0:00:08]} Rxa3 {[%emt 0:00:25]} 38. Kxe5 {[%emt 0:01:10]} g6 {[%emt 0:03:41]} 39. Rd2 {[%emt 0:00:24]} Rf3 {[%emt 0:00:09]} 40. Ke4 {[%emt 0:01:15]} Rf5 {[%emt 0:00:05]} 41. Rc2 {[%emt 0:00:13]} a5 {[%emt 0:01:13]} 42. Rb2 {[%emt 0:00:49]} a4 {[%emt 0:00:30]} 43. Kd4 {[%emt 0:00:21]} a3 {[%emt 0:00:43]} 44. Ra2 {[%emt 0:00:09]} Nb4 {[%emt 0:00:12]} 0-1

[Event "2nd Namma Bengaluru Open-A 2025"]
[Site "Bengaluru"]
[Date "2025.04.11"]
[Round "3.4"]
[White "Pranav Anand"]
[Black "Gomes, Mary Ann"]
[Result "1-0"]
[Annotator "ChessBase"]
[ECO "A45"]
[WhiteElo "2538"]
[BlackElo "2284"]
[PlyCount "89"]
[EventDate "2025.04.10"]
[EventType "swiss"]
[EventCountry "IND"]
[SourceTitle "playchess.com"]
[Source "ChessBase"]
[SourceQuality "1"]
[TimeControl "5400+30"]

1. d4 {[%emt 0:00:12]} Nf6 {[%emt 0:00:28]} 2. Bf4 {[%emt 0:00:11]} d6 {[%emt 0:00:18]} 3. Nc3 {[%emt 0:01:29]} Nbd7 {[%emt 0:00:46]} 4. Nf3 {[%emt 0:03:17]} c5 {[%emt 0:03:05]} 5. e3 {[%emt 0:03:43]} a6 {[%emt 0:00:22]} 6. a4 {[%emt 0:01:56]} Qc7 {[%emt 0:08:24]} 7. d5 {[%emt 0:02:34]} g6 {[%emt 0:00:12]} 8. h3 {[%emt 0:00:59]} Bg7 {[%emt 0:00:06]} 9. Bc4 {[%emt 0:01:13]} O-O {[%emt 0:02:23]} 10. O-O {[%emt 0:00:10]} Ne8 {[%emt 0:01:44]} 11. Nd2 {[%emt 0:03:34]} Qb8 {[%emt 0:03:06]} 12. Bg5 {[%emt 0:05:09]} Ndf6 {[%emt 0:04:08]} 13. e4 {[%emt 0:00:36]} Kh8 {[%emt 0:09:58]} 14. a5 {[%emt 0:03:01]} Bd7 {[%emt 0:00:16]} 15. Re1 {[%emt 0:01:30]} Ng8 {[%emt 0:03:47]} 16. Bd3 {[%emt 0:05:39]} Nc7 {[%emt 0:09:35]} 17. Nc4 {[%emt 0:01:02]} Qe8 {[%emt 0:00:08]} 18. Bf4 {[%emt 0:03:43]} Bb5 {[%emt 0:05:33]} 19. e5 {[%emt 0:07:15]} Bxc4 {[%emt 0:01:42]} 20. Bxc4 {[%emt 0:00:04]} dxe5 {[%emt 0:02:55]} 21. Bxe5 {[%emt 0:00:16]} Bxe5 {[%emt 0:00:25]} 22. Rxe5 {[%emt 0:00:02]} Qd8 {[%emt 0:01:53]} 23. Qe1 {[%emt 0:01:46]} Ne8 {[%emt 0:00:20]} 24. Na4 {[%emt 0:00:57]} Nd6 {[%emt 0:00:41]} 25. Bf1 {[%emt 0:00:16]} Rc8 {[%emt 0:03:31]} 26. Qc3 {[%emt 0:07:42]} Nf6 {[%emt 0:04:52]} 27. Nxc5 {[%emt 0:02:33]} Kg8 {[%emt 0:00:13]} 28. Qb4 {[%emt 0:02:55]} Qc7 {[%emt 0:00:51]} 29. Na4 {[%emt 0:01:24]} Qxc2 {[%emt 0:12:47]} 30. Nc3 {[%emt 0:08:01]} Rfe8 {[%emt 0:05:10]} 31. Rae1 {[%emt 0:00:51]} Rc7 {[%emt 0:01:37]} 32. g4 {[%emt 0:01:42]} Kf8 {[%emt 0:06:51]} 33. R5e2 {[%emt 0:01:39]} Qd3 {[%emt 0:01:46]} 34. Rxe7 {[%emt 0:01:05]} Rexe7 {[%emt 0:00:21]} 35. Rxe7 {[%emt 0:00:58]} Qxf1+ {[%emt 0:00:21]} 36. Kxf1 {[%emt 0:00:04]} Kxe7 {[%emt 0:00:06]} 37. Qd4 {[%emt 0:02:37]} Nfe8 {[%emt 0:00:28]} 38. b3 {[%emt 0:00:28]} Kd8 {[%emt 0:00:57]} 39. Kg2 {[%emt 0:00:30]} f5 {[%emt 0:01:02]} 40. g5 {[%emt 0:01:06]} Re7 {[%emt 0:00:49]} 41. Na4 {[%emt 0:01:09]} Ne4 {[%emt 0:01:29]} 42. b4 {[%emt 0:03:21]} Nxg5 {[%emt 0:02:03]} 43. d6 {[%emt 0:00:29]} Rd7 {[%emt 0:00:33]} 44. Qh4 {[%emt 0:01:16]} h6 {[%emt 0:00:06]} 45. Nc5 {[%emt 0:00:03]} 1-0

[Event "2nd Namma Bengaluru Open-A 2025"]
[Site "Bengaluru"]
[Date "2025.04.11"]
[Round "3.5"]
[White "Setumadhav Yellumahanthi"]
[Black "Pantsulaia, Levan"]
[Result "0-1"]
[Annotator "ChessBase"]
[ECO "B42"]
[WhiteElo "2300"]
[BlackElo "2532"]
[PlyCount "64"]
[EventDate "2025.04.10"]
[EventType "swiss"]
[EventCountry "IND"]
[SourceTitle "playchess.com"]
[Source "ChessBase"]
[SourceQuality "1"]
[TimeControl "5400+30"]

1. e4 {[%emt 0:00:03]} c5 {[%emt 0:00:09]} 2. Nf3 {[%emt 0:00:07]} e6 {[%emt 0:01:01]} 3. d4 {[%emt 0:00:13]} cxd4 {[%emt 0:00:06]} 4. Nxd4 {[%emt 0:00:04]} a6 {[%emt 0:00:05]} 5. Bd3 {[%emt 0:00:08]} Qc7 {[%emt 0:00:13]} 6. O-O {[%emt 0:00:42]} Nf6 {[%emt 0:00:06]} 7. Qe2 {[%emt 0:00:06]} d6 {[%emt 0:00:07]} 8. c4 {[%emt 0:00:20]} g6 {[%emt 0:00:11]} 9. f4 {[%emt 0:02:01]} Bg7 {[%emt 0:00:26]} 10. f5 {[%emt 0:00:46]} O-O {[%emt 0:05:08]} 11. Kh1 {[%emt 0:19:47]} exf5 {[%emt 0:05:14]} 12. exf5 {[%emt 0:01:02]} Re8 {[%emt 0:00:09]} 13. Qf2 {[%emt 0:13:45]} b6 {[%emt 0:26:22]} 14. Bg5 {[%emt 0:04:25]} Nbd7 {[%emt 0:02:52]} 15. Qh4 {[%emt 0:09:51]} Bb7 {[%emt 0:03:36]} 16. Nc3 {[%emt 0:01:17]} Re5 {[%emt 0:13:11]} 17. Rf2 {[%emt 0:21:34]} Nc5 {[%emt 0:04:30]} 18. Bxf6 {[%emt 0:07:31]} Nxd3 {[%emt 0:00:39]} 19. Rff1 {[%emt 0:02:32]} Bxf6 {[%emt 0:04:16]} 20. Qxf6 {[%emt 0:00:03]} Qe7 {[%emt 0:00:29]} 21. Qxe7 {[%emt 0:01:51]} Rxe7 {[%emt 0:00:06]} 22. b3 {[%emt 0:02:47]} Rae8 {[%emt 0:01:10]} 23. Rad1 {[%emt 0:01:12]} Nc5 {[%emt 0:03:47]} 24. fxg6 {[%emt 0:03:51]} hxg6 {[%emt 0:02:23]} 25. b4 {[%emt 0:03:42]} Nd7 {[%emt 0:03:08]} 26. Nf3 {[%emt 0:02:35]} Rc8 {[%emt 0:01:29]} 27. Rd4 {[%emt 0:00:44]} Ne5 {[%emt 0:01:51]} 28. Nd2 {[%emt 0:00:56]} Rec7 {[%emt 0:02:03]} 29. Rxd6 {[%emt 0:00:26]} Nxc4 {[%emt 0:00:06]} 30. Nxc4 {[%emt 0:00:09]} Rxc4 {[%emt 0:00:05]} 31. Rxb6 {[%emt 0:00:36]} Ba8 {[%emt 0:00:51]} 32. Na4 {[%emt 0:00:48]} Rg4 {[%emt 0:01:25]} 0-1

[Event "2nd Namma Bengaluru Open-A 2025"]
[Site "Bengaluru"]
[Date "2025.04.11"]
[Round "3.6"]
[White "Ajay Santhosh Parvathareddy"]
[Black "Stany, G.A."]
[Result "1/2-1/2"]
[Annotator "ChessBase"]
[ECO "D02"]
[WhiteElo "2297"]
[BlackElo "2454"]
[PlyCount "136"]
[EventDate "2025.04.10"]
[EventType "swiss"]
[EventCountry "IND"]
[SourceTitle "playchess.com"]
[Source "ChessBase"]
[SourceQuality "1"]
[TimeControl "5400+30"]

1. Nf3 {[%emt 0:02:03]} d5 {[%emt 0:02:24]} 2. g3 {[%emt 0:00:10]} Nd7 {[%emt 1:29:06]} 3. d4 {[%emt 0:00:08]} Nb6 {[%emt 0:00:00]} 4. Bg2 {[%emt 0:00:20]} g6 {[%emt 0:00:00]} 5. Bf4 {[%emt 0:02:49]} Bg7 {[%emt 0:00:00]} 6. Nc3 {[%emt 0:00:14]} c6 {[%emt 0:00:00]} 7. e4 {[%emt 0:09:27]} dxe4 {[%emt 0:00:00]} 8. Nxe4 {[%emt 0:00:03]} Nd5 {[%emt 0:00:00]} 9. Bd2 {[%emt 0:00:08]} Ngf6 {[%emt 0:00:00]} 10. Nxf6+ {[%emt 0:00:44]} Nxf6 {[%emt 0:00:00]} 11. Qe2 {[%emt 0:01:27]} Qb6 {[%emt 0:00:00]} 12. O-O-O {[%emt 0:03:38]} Be6 {[%emt 0:00:00]} 13. a3 {[%emt 0:01:00]} O-O {[%emt 0:00:00]} 14. h4 {[%emt 0:00:34]} Bg4 {[%emt 0:00:00]} 15. Qxe7 {[%emt 0:03:40]} Rfe8 {[%emt 0:00:00]} 16. Qb4 {[%emt 0:03:00]} Ne4 {[%emt 0:00:00]} 17. Qxb6 {[%emt 0:12:56]} axb6 {[%emt 0:00:00]} 18. Be1 {[%emt 0:00:03]} Rad8 {[%emt 0:00:00]} 19. Rd3 {[%emt 0:01:15]} Bxf3 {[%emt 0:00:00]} 20. Bxf3 {[%emt 0:00:19]} Rxd4 {[%emt 0:00:00]} 21. Rxd4 {[%emt 0:01:58]} Bxd4 {[%emt 0:00:00]} 22. Bxe4 {[%emt 0:02:13]} Rxe4 {[%emt 0:00:00]} 23. c3 {[%emt 0:00:08]} Bc5 {[%emt 0:00:00]} 24. b4 {[%emt 0:00:08]} Bd6 {[%emt 0:00:00]} 25. Bd2 {[%emt 0:00:47]} f5 {[%emt 0:00:00]} 26. Re1 {[%emt 0:01:04]} Rxe1+ {[%emt 0:00:00]} 27. Bxe1 {[%emt 0:00:07]} b5 {[%emt 0:00:00]} 28. Kc2 {[%emt 0:07:56]} Kf7 {[%emt 0:00:00]} 29. Kd3 {[%emt 0:00:04]} Ke6 {[%emt 0:00:00]} 30. f4 {[%emt 0:04:59]} Kd5 {[%emt 0:00:00]} 31. Bf2 {[%emt 0:00:02]} Be7 {[%emt 0:00:00]} 32. Be3 {[%emt 0:02:57]} Bf6 {[%emt 0:00:00]} 33. Bc5 {[%emt 0:00:34]} Bd8 {[%emt 0:00:00]} 34. Bd4 {[%emt 0:01:32]} Bc7 {[%emt 0:00:00]} 35. Bc5 {[%emt 0:00:16]} Bb8 {[%emt 0:00:00]} 36. Bb6 {[%emt 0:00:27]} Bd6 {[%emt 0:00:00]} 37. Bd4 {[%emt 0:00:20]} Be7 {[%emt 0:00:00]} 38. Be3 {[%emt 0:00:07]} c5 {[%emt 0:00:00]} 39. Bf2 {[%emt 0:06:47]} Bf8 {[%emt 0:00:00]} 40. Be1 {[%emt 0:01:04]} Bg7 {[%emt 0:00:00]} 41. Bd2 {[%emt 0:00:21]} Bf6 {[%emt 0:00:00]} 42. Be1 {[%emt 0:01:42]} Bh8 {[%emt 0:00:48]} 43. Bd2 {[%emt 0:00:54]} Bg7 {[%emt 0:00:15]} 44. Be1 {[%emt 0:00:06]} Bf6 {[%emt 0:00:03]} 45. Bd2 {[%emt 0:01:15]} Bd8 {[%emt 0:00:05]} 46. Be3 {[%emt 0:03:45]} c4+ {[%emt 0:03:35]} 47. Ke2 {[%emt 0:00:31]} Bf6 {[%emt 0:00:04]} 48. Bd2 {[%emt 0:00:04]} Ke4 {[%emt 0:00:03]} 49. Be1 {[%emt 0:00:04]} Bh8 {[%emt 0:02:49]} 50. Bd2 {[%emt 0:00:03]} Bg7 {[%emt 0:00:04]} 51. Be1 {[%emt 0:00:03]} Bf6 {[%emt 0:00:08]} 52. Bd2 {[%emt 0:00:02]} h6 {[%emt 0:00:05]} 53. Be1 {[%emt 0:00:40]} g5 {[%emt 0:00:29]} 54. fxg5 {[%emt 0:04:45]} hxg5 {[%emt 0:00:04]} 55. h5 {[%emt 0:00:04]} f4 {[%emt 0:07:20]} 56. gxf4 {[%emt 0:00:23]} Kxf4 {[%emt 0:00:07]} 57. h6 {[%emt 0:06:43]} Kf5 {[%emt 0:04:57]} 58. Kf3 {[%emt 0:05:03]} Kg6 {[%emt 0:02:41]} 59. Ke4 {[%emt 0:01:44]} Kxh6 {[%emt 0:00:16]} 60. Kd5 {[%emt 0:03:45]} g4 {[%emt 0:01:27]} 61. Kc5 {[%emt 0:00:09]} Kh5 {[%emt 0:00:15]} 62. Bg3 {[%emt 0:00:37]} Bxc3 {[%emt 0:01:35]} 63. Kxb5 {[%emt 0:00:04]} Bb2 {[%emt 0:00:04]} 64. Kxc4 {[%emt 0:00:03]} Bxa3 {[%emt 0:00:10]} 65. Kb5 {[%emt 0:01:07]} Kg5 {[%emt 0:00:21]} 66. Be1 {[%emt 0:00:15]} Kf4 {[%emt 0:02:01]} 67. Kb6 {[%emt 0:00:04]} Kf3 {[%emt 0:00:05]} 68. b5 {[%emt 0:00:02]} g3 {[%emt 0:01:51]} 1/2-1/2